bitfinex/quotes_BTCUSD_20251209
["timestamp","ask_amount","ask_price","bid_price","bid_amount"]
[1765287849525,0.51788755,90421.0,90420.0,0.00123816]
[1765287852984,2.46575032,90421.0,90420.0,0.00123816]
[1765287853137,2.487774,90421.0,90420.0,0.00123816]
[1765287853503,2.59828162,90421.0,90420.0,0.00123816]
[1765287854154,2.62197785,90421.0,90420.0,0.00123816]
[1765287858210,2.59828162,90421.0,90420.0,0.00123816]
[1765287860158,2.59827504,90421.0,90420.0,0.00123816]
[1765287861932,2.62196177,90421.0,90420.0,0.00123816]
[1765287863610,2.63948177,90421.0,90420.0,0.00123816]
[1765287866504,2.63348177,90421.0,90420.0,0.00023816]
[1765287866710,2.63548177,90421.0,90420.0,0.00023816]
[1765287866916,2.64448177,90421.0,90420.0,0.00223816]
[1765287868074,2.64248177,90421.0,90420.0,0.00223816]
[1765287868274,2.64448177,90421.0,90420.0,0.00223816]
[1765287870333,2.68018491,90421.0,90420.0,0.00223816]
[1765287870531,2.52194503,90421.0,90420.0,0.00223816]
[1765287872970,2.82936802,90421.0,90420.0,0.00223816]
[1765287873183,2.904305,90421.0,90420.0,0.00223816]
[1765287873878,2.98881845,90421.0,90420.0,0.00223816]
[1765287874095,2.98881714,90421.0,90420.0,0.00223816]
[1765287874301,3.06009092,90421.0,90420.0,0.00223816]
[1765287874644,0.5119218,90407.0,90406.0,0.00011563]
[1765287874795,2.56174536,90407.0,90406.0,0.00011563]
[1765287874996,2.58543209,90407.0,90406.0,0.00011563]
[1765287875206,2.69593971,90407.0,90406.0,0.00011563]
[1765287875422,2.70037382,90407.0,90406.0,0.00011563]
[1765287876147,2.70337382,90407.0,90406.0,0.00111563]
[1765287878452,2.73297661,90407.0,90406.0,0.00111563]
[1765287878711,2.70337382,90407.0,90406.0,0.00111563]
[1765287879385,2.70037382,90407.0,90406.0,0.00011563]
[1765287879812,2.71037382,90407.0,90406.0,0.00011563]
[1765287880016,2.52195552,90391.0,90350.0,4.008e-05]
[1765287880173,2.60301678,90391.0,90350.0,4.008e-05]
[1765287880393,2.60301678,90391.0,90350.0,0.01110814]
[1765287880570,2.57344213,90391.0,90350.0,0.03324427]
[1765287880773,2.5778773,90391.0,90350.0,0.03324427]
[1765287881089,0.51203442,90361.0,90350.0,4.008e-05]
[1765287881323,2.5340581,90361.0,90360.0,0.00027257]
[1765287881528,2.54431785,90361.0,90360.0,0.00027257]
[1765287881728,2.57758961,90361.0,90360.0,0.00027257]
[1765287882142,2.68809723,90361.0,90360.0,0.00027257]
[1765287882336,2.68909723,90361.0,90360.0,0.00027257]
[1765287882540,2.68809723,90361.0,90360.0,0.00027257]
[1765287882940,2.68809723,90361.0,90360.0,0.00127257]
[1765287883196,2.69009723,90361.0,90360.0,0.00127257]
[1765287883476,1.53301561,90361.0,90360.0,0.00127257]
[1765287883677,1.23587493,90361.0,90360.0,0.00127257]
[1765287883974,1.19364917,90361.0,90360.0,0.00127257]
[1765287884375,1.18338942,90361.0,90360.0,0.00127257]
[1765287885351,1.19363194,90361.0,90360.0,0.00127257]
[1765287885571,1.18338942,90361.0,90360.0,0.00127257]
[1765287885880,1.21565184,90361.0,90360.0,0.00127257]
[1765287886087,1.21365184,90361.0,90360.0,0.00027257]
[1765287886490,1.21765184,90361.0,90360.0,0.00027257]
[1765287886707,1.21365184,90361.0,90360.0,0.00116643]
[1765287886905,1.32415946,90361.0,90360.0,0.00116643]
[1765287888292,1.32915946,90361.0,90360.0,0.00116643]
[1765287888488,1.32415946,90361.0,90360.0,0.00116643]
[1765287888939,1.32915946,90361.0,90360.0,0.00116643]
[1765287889148,1.32415946,90361.0,90360.0,0.00116643]
[1765287890055,1.32915946,90361.0,90360.0,0.00116643]
[1765287890791,1.34022936,90361.0,90360.0,0.00116643]
[1765287891197,0.99096106,90361.0,90360.0,0.00116643]
[1765287891434,0.98596106,90361.0,90360.0,0.00116643]
[1765287891634,0.90727032,90361.0,90360.0,0.00116643]
[1765287891854,0.91749935,90361.0,90360.0,0.00116643]
[1765287892426,0.91250011,90361.0,90360.0,0.00116643]
[1765287892581,1.02300773,90361.0,90360.0,0.00116643]
[1765287892901,1.02700773,90361.0,90360.0,0.00116643]
[1765287893953,1.04903141,90361.0,90360.0,0.00116643]
[1765287894702,1.03880162,90361.0,90360.0,0.00116643]
[1765287894909,1.04903336,90361.0,90360.0,0.00116643]
[1765287895719,4.67680536,90361.0,90360.0,0.00116643]
[1765287896717,4.38610536,90361.0,90360.0,0.00116643]
[1765287896961,4.67680536,90361.0,90360.0,0.00116643]
[1765287897367,2.22135892,90351.0,90350.0,4.008e-05]
[1765287897510,2.56183434,90351.0,90350.0,0.00015584]
[1765287897928,2.59511093,90351.0,90350.0,0.00045387]
[1765287899330,2.59811093,90351.0,90350.0,0.00045387]
[1765287900250,2.30741093,90351.0,90350.0,0.00045387]
[1765287900449,2.70861855,90351.0,90350.0,0.00045387]
[1765287900876,0.91939425,90351.0,90350.0,0.00045387]
[1765287901095,0.2937,90351.0,90350.0,0.00145387]
[1765287901251,0.003,90351.0,90350.0,0.22281524]
[1765287901693,0.003,90351.0,90350.0,0.22442811]
[1765287902574,0.003,90351.0,90350.0,0.24640437]
[1765287902955,3.627772,90361.0,90360.0,0.22133687]
[1765287903157,3.627772,90361.0,90360.0,0.22294974]
[1765287904492,3.627772,90361.0,90360.0,0.244926]
[1765287905000,3.627772,90361.0,90360.0,0.246926]
[1765287905159,3.627772,90361.0,90360.0,0.22494974]
[1765287905577,3.66707894,90361.0,90360.0,0.002]
[1765287905783,5.43387225,90361.0,90360.0,0.002]
[1765287906299,4.39955025,90361.0,90360.0,0.002]
[1765287906540,4.37750225,90361.0,90360.0,0.002]
[1765287906742,4.37950225,90361.0,90360.0,0.002]
[1765287906965,4.37950225,90361.0,90352.0,0.00023842]
[1765287906966,2.01990202,90353.0,90352.0,0.00023842]
[1765287907131,2.14066495,90353.0,90352.0,0.00023842]
[1765287907331,2.16268863,90353.0,90352.0,0.00023842]
[1765287907725,2.14066495,90353.0,90352.0,0.00023842]
[1765287907946,1.46325933,90353.0,90352.0,0.00023842]
[1765287908163,0.85753633,90353.0,90352.0,0.00123842]
[1765287908681,0.85753633,90353.0,90352.0,0.00023842]
[1765287908841,0.85753633,90353.0,90352.0,0.00123842]
[1765287909242,0.86153633,90353.0,90352.0,0.00123842]
[1765287909481,0.93291306,90353.0,90352.0,0.00123842]
[1765287910618,0.86153633,90353.0,90352.0,0.00123842]
[1765287911843,0.86153633,90353.0,90352.0,0.00023842]
[1765287912042,0.85753633,90353.0,90352.0,0.00023842]
[1765287912477,0.86153633,90353.0,90352.0,0.00023842]
[1765287912948,0.87153089,90353.0,90352.0,0.00023842]
[1765287913121,0.98203851,90353.0,90352.0,0.00023842]
[1765287913286,0.98203851,90353.0,90352.0,0.00123842]
[1765287914446,0.86153633,90353.0,90352.0,0.00123842]
[1765287915007,0.87153089,90353.0,90352.0,0.00123842]
[1765287915208,0.89519795,90353.0,90352.0,0.00123842]
[1765287916551,0.9062692,90353.0,90352.0,0.00123842]
[1765287916732,0.93582761,90353.0,90352.0,0.00123842]
[1765287916939,1.04633523,90353.0,90352.0,0.00123842]
[1765287917343,1.01677682,90353.0,90352.0,0.00123842]
[1765287919977,1.01677682,90353.0,90352.0,0.00023842]
[1765287920334,1.01777682,90353.0,90352.0,0.00023842]
[1765287920540,1.01377682,90353.0,90352.0,0.00023842]
[1765287921205,1.02077682,90353.0,90352.0,0.00023842]
[1765287923766,0.87660758,90353.0,90352.0,0.00023842]
[1765287923968,0.86553633,90353.0,90352.0,0.00023842]
[1765287924392,0.01825531,90353.0,90352.0,0.00023842]
[1765287924550,0.008,90353.0,90352.0,0.00023842]
[1765287924951,1.09481808,90353.0,90352.0,0.00023842]
[1765287925204,1.2053257,90353.0,90352.0,0.00023842]
[1765287925704,1.1973257,90353.0,90352.0,0.00023842]
[1765287926078,1.2023257,90353.0,90352.0,0.00123842]
[1765287926410,1.1973257,90353.0,90352.0,0.00123842]
[1765287926564,1.1973257,90353.0,90352.0,0.00023842]
[1765287926770,1.2023257,90353.0,90352.0,0.00123842]
[1765287927232,1.09181808,90353.0,90352.0,0.00123842]
[1765287927412,0.84795708,90353.0,90352.0,0.00123842]
[1765287927713,0.83796252,90353.0,90352.0,0.00123842]
[1765287929101,1.05931654,90353.0,90352.0,0.00123842]
[1765287929681,1.04914954,90353.0,90352.0,0.00123842]
[1765287930027,1.14307752,90353.0,90352.0,0.00123842]
[1765287930391,0.92195952,90353.0,90352.0,0.00123842]
[1765287930717,0.51705402,90353.0,90352.0,0.00123842]
[1765287930864,0.005,90353.0,90352.0,0.22259489]
[1765287931067,0.005,90353.0,90352.0,0.22420776]
[1765287931466,0.005,90353.0,90352.0,0.00285129]
[1765287931701,0.22635402,90353.0,90352.0,0.00285129]
[1765287931907,0.005,90353.0,90352.0,0.00285129]
[1765287932409,0.005,90353.0,90352.0,0.22420776]
[1765287933010,0.23241166,90357.0,90353.0,0.23242002]
[1765287933258,0.23241166,90357.0,90354.0,0.22135078]
[1765287933664,0.22134737,90356.0,90353.0,0.01268057]
[1765287934035,0.01106733,90356.0,90353.0,0.00161287]
[1765287934238,0.22135157,90354.0,90353.0,0.00161287]
[1765287936111,0.22835157,90354.0,90353.0,0.00261287]
[1765287936545,2.51905157,90354.0,90353.0,0.001]
[1765287936731,1.63810884,90354.0,90353.0,0.001]
[1765287937386,1.43645284,90354.0,90353.0,0.001]
[1765287937589,1.18769284,90354.0,90353.0,0.001]
[1765287938306,0.726474,90353.0,90352.0,0.00023842]
[1765287938482,0.73674427,90353.0,90352.0,0.00023842]
[1765287938871,0.22814827,90353.0,90352.0,0.00023842]
[1765287940135,0.23414827,90353.0,90352.0,0.00123842]
[1765287941128,0.25617195,90353.0,90352.0,0.00123842]
[1765287941453,0.23414827,90353.0,90352.0,0.00123842]
[1765287941736,0.25617195,90353.0,90352.0,0.00123842]
[1765287941873,0.23414827,90353.0,90352.0,0.00123842]
[1765287942078,0.25617195,90353.0,90352.0,0.00123842]
[1765287943815,0.36667957,90353.0,90352.0,0.00123842]
[1765287944023,0.58803359,90353.0,90352.0,0.00123842]
[1765287945774,0.45550229,90353.0,90352.0,0.00123842]
[1765287948374,0.47917201,90353.0,90352.0,0.00123842]
[1765287948574,0.79189569,90353.0,90352.0,0.00123842]
[1765287950015,0.78589569,90353.0,90352.0,0.00023842]
[1765287950580,0.78689569,90353.0,90352.0,0.00023842]
[1765287950793,0.89740331,90353.0,90352.0,0.00023842]
[1765287951203,0.89640331,90353.0,90352.0,0.00023842]
[1765287951638,0.89740331,90353.0,90352.0,0.00023842]
[1765287951859,0.90640331,90353.0,90352.0,0.00023842]
[1765287952294,0.89740331,90353.0,90352.0,0.00023842]
[1765287952535,0.90540331,90353.0,90352.0,0.00023842]
[1765287953637,0.90440331,90353.0,90352.0,0.00023842]
[1765287954041,2.53415612,90321.0,90320.0,0.0002]
[1765287954331,2.53421116,90321.0,90320.0,0.0002]
[1765287954698,2.54447678,90321.0,90320.0,0.0002]
[1765287955282,2.53421116,90321.0,90320.0,0.0022]
[1765287956179,2.54647096,90321.0,90320.0,0.0022]
[1765287956502,2.65697858,90321.0,90320.0,0.0022]
[1765287957315,2.64671878,90321.0,90320.0,0.0022]
[1765287957681,2.6569688,90321.0,90320.0,0.0022]
[1765287958270,2.64671878,90321.0,90320.0,0.0022]
[1765287958504,2.64671878,90321.0,90320.0,0.0002]
[1765287958907,2.64471878,90321.0,90320.0,0.0002]
[1765287959110,2.65496466,90321.0,90320.0,0.0002]
[1765287959332,2.66096466,90321.0,90320.0,0.0002]
[1765287959677,2.66096466,90321.0,90320.0,0.00115407]
[1765287959881,0.01107395,90302.0,90296.0,0.01107468]
[1765287960080,0.01107395,90302.0,90296.0,0.01268755]
[1765287960282,0.2907,90314.0,90307.0,0.01107333]
[1765287960590,0.00605504,90321.0,90318.0,0.01107199]
[1765287960821,5.504e-05,90321.0,90319.0,0.22143723]
[1765287961134,5.504e-05,90321.0,90320.0,0.00161287]
[1765287962793,0.00105504,90321.0,90320.0,0.00561287]
[1765287964068,0.00105504,90321.0,90320.0,0.02775635]
[1765287964219,0.00105504,90321.0,90320.0,0.00561287]
[1765287964643,0.00105504,90321.0,90320.0,0.04973261]
[1765287965565,0.00105504,90321.0,90320.0,0.1122556]
[1765287967182,5.504e-05,90321.0,90320.0,0.1122556]
[1765287967564,0.00205504,90321.0,90320.0,0.3989556]
[1765287967747,0.00205504,90321.0,90320.0,0.37681212]
[1765287967955,0.00305504,90321.0,90320.0,0.38281212]
[1765287968834,5.504e-05,90321.0,90320.0,0.37681212]
[1765287969032,5.504e-05,90321.0,90320.0,0.38381212]
[1765287969240,0.00305504,90321.0,90320.0,0.38381212]
[1765287975678,0.00305504,90321.0,90320.0,0.60524701]
[1765287975880,0.00132995,90349.0,90348.0,0.24334253]
[1765287976323,0.00132995,90349.0,90348.0,0.2449554]
[1765287976699,0.00132995,90349.0,90348.0,0.38021368]
[1765287977025,0.00132995,90349.0,90348.0,0.38221368]
[1765287977244,0.00432995,90349.0,90348.0,0.38321368]
[1765287977664,0.00432995,90349.0,90348.0,0.38121368]
[1765287978093,0.00432995,90349.0,90348.0,0.38521368]
[1765287978783,0.00132995,90349.0,90348.0,0.38421368]
[1765287978999,0.00332995,90349.0,90348.0,0.38521368]
[1765287982366,0.00332995,90349.0,90348.0,0.29050213]
[1765287982572,0.00332995,90349.0,90348.0,0.30050031]
[1765287982898,0.00332995,90349.0,90348.0,0.22797914]
[1765287983318,0.00332995,90349.0,90348.0,0.00661287]
[1765287983735,0.00332995,90349.0,90348.0,0.28961202]
[1765287983933,0.00332995,90349.0,90348.0,0.30802213]
[1765287984281,0.00332995,90349.0,90348.0,0.38861754]
[1765287984652,0.00332995,90349.0,90348.0,0.4105938]
[1765287986457,0.00332995,90349.0,90348.0,0.005]
[1765287990853,0.00332995,90349.0,90348.0,0.00661287]
[1765287991087,0.00332995,90349.0,90348.0,0.11324874]
[1765287992081,0.00332995,90349.0,90348.0,0.33461501]
[1765287992281,0.00332995,90349.0,90348.0,0.31247839]
[1765287992894,0.00132995,90349.0,90348.0,0.31147839]
[1765287993086,0.00232995,90349.0,90348.0,0.31247839]
[1765287993285,0.00232995,90349.0,90348.0,0.30847839]
[1765287993522,0.00232995,90349.0,90348.0,0.31147839]
[1765287994909,3.627772,90361.0,90360.0,0.30583612]
[1765287995175,3.627772,90361.0,90360.0,0.32496899]
[1765287995369,3.62812959,90361.0,90360.0,0.32496899]
[1765287996330,3.62912959,90361.0,90360.0,0.32796899]
[1765287997128,3.62812959,90361.0,90360.0,0.32496899]
[1765287997329,3.62912959,90361.0,90360.0,0.33196899]
[1765287998396,3.62912959,90361.0,90360.0,0.62266899]
[1765287998597,3.62912959,90361.0,90360.0,0.61866899]
[1765287998800,3.62812959,90361.0,90360.0,0.61566899]
[1765287999181,3.62912959,90361.0,90360.0,0.61766899]
[1765287999613,3.62912959,90361.0,90360.0,0.62166899]
[1765288001343,3.11396736,90361.0,90360.0,0.62166899]
[1765288001497,2.78820585,90361.0,90360.0,0.62166899]
[1765288001818,2.51102644,90361.0,90360.0,0.62166899]
[1765288002174,2.12248665,90361.0,90360.0,0.62166899]
[1765288002375,1.77938204,90361.0,90360.0,0.62166899]
[1765288002584,1.7604265,90361.0,90360.0,0.65491368]
[1765288003012,1.7604265,90361.0,90360.0,0.65091368]
[1765288003374,1.7594265,90361.0,90360.0,0.76561368]
[1765288003577,1.7594265,90361.0,90360.0,0.77061368]
[1765288003967,1.7604265,90361.0,90360.0,0.77561368]
[1765288006197,1.26003946,90361.0,90360.0,0.77561368]
[1765288007711,1.26003946,90361.0,90360.0,0.92121368]
[1765288008759,1.26003946,90361.0,90360.0,0.88796899]
[1765288008985,1.26003946,90361.0,90360.0,0.60814899]
[1765288009148,1.26003946,90361.0,90360.0,0.563146]
[1765288009491,1.26003946,90361.0,90360.0,0.62566899]
[1765288011762,1.26003946,90361.0,90360.0,0.62566899]
[1765288012773,1.26003946,90361.0,90360.0,0.61369091]
[1765288016831,1.26003946,90361.0,90360.0,0.32299091]
[1765288017819,1.26003946,90361.0,90360.0,0.61369091]
[1765288018020,1.26003946,90361.0,90360.0,0.60869091]
[1765288018224,1.25903946,90361.0,90360.0,0.60369091]
[1765288018426,0.75522128,90361.0,90360.0,0.60669091]
[1765288018604,0.75522128,90361.0,90360.0,0.60869091]
[1765288018605,0.75128226,90361.0,90360.0,0.60869091]
[1765288018811,0.75028226,90361.0,90360.0,0.60369091]
[1765288019224,0.75128226,90361.0,90360.0,0.61169091]
[1765288019527,0.75028226,90361.0,90360.0,0.60769091]
[1765288019797,0.75128226,90361.0,90360.0,0.60769091]
[1765288019965,0.75128226,90361.0,90360.0,0.61169091]
[1765288020169,0.75028226,90361.0,90360.0,0.60769091]
[1765288020765,0.75028226,90361.0,90360.0,0.29947091]
[1765288020964,0.75028226,90361.0,90360.0,0.23694792]
[1765288021164,0.75028226,90361.0,90360.0,0.54516792]
[1765288021367,0.75028226,90361.0,90360.0,0.25046792]
[1765288021548,0.75028226,90361.0,90360.0,0.31299091]
[1765288021750,0.75128226,90361.0,90360.0,0.32099091]
[1765288021951,0.75128226,90361.0,90360.0,0.61169091]
[1765288022342,0.75128226,90361.0,90360.0,0.60769091]
[1765288022543,0.75028226,90361.0,90360.0,0.60369091]
[1765288022776,0.75128226,90361.0,90360.0,0.60869091]
[1765288023141,0.75028226,90361.0,90360.0,0.60369091]
[1765288023358,0.75028226,90361.0,90360.0,0.25246792]
[1765288023565,0.75128226,90361.0,90360.0,0.25246792]
[1765288024206,0.75128226,90361.0,90360.0,0.31499091]
[1765288024567,0.75128226,90361.0,90360.0,0.31799091]
[1765288024774,0.75028226,90361.0,90360.0,0.31599091]
[1765288025019,0.75128226,90361.0,90360.0,0.31599091]
[1765288025345,0.75028226,90361.0,90360.0,0.31599091]
[1765288025670,0.75128226,90361.0,90360.0,0.31899091]
[1765288025869,0.75128226,90361.0,90360.0,0.31599091]
[1765288026085,0.75028226,90361.0,90360.0,0.31299091]
[1765288026299,0.75128226,90361.0,90360.0,0.31899091]
[1765288026910,0.75028226,90361.0,90360.0,0.31599091]
[1765288027340,0.75028226,90361.0,90360.0,0.31299091]
[1765288027768,0.75028226,90361.0,90360.0,0.31499091]
[1765288028171,0.75028226,90361.0,90360.0,0.31299091]
[1765288028561,0.75028226,90361.0,90360.0,0.31599091]
[1765288028762,0.75128226,90361.0,90360.0,0.31699091]
[1765288029363,0.75028226,90361.0,90360.0,0.31599091]
[1765288029563,0.75128226,90361.0,90360.0,0.31799091]
[1765288041477,0.75128226,90361.0,90360.0,0.60869091]
[1765288042738,0.75128226,90361.0,90360.0,0.31799091]
[1765288046934,0.75128226,90361.0,90360.0,0.30047091]
[1765288047120,0.75128226,90361.0,90360.0,0.31799091]
[1765288048574,0.75128226,90361.0,90360.0,0.25546792]
[1765288049266,0.75128226,90361.0,90360.0,0.31799091]
[1765288083685,0.75128226,90361.0,90360.0,0.23794792]
[1765288084193,0.75128226,90361.0,90360.0,0.25546792]
[1765288084367,0.75128226,90361.0,90360.0,0.31799091]
[1765288087110,0.97261668,90361.0,90360.0,0.09665404]
[1765288087446,0.97261668,90361.0,90360.0,0.02252]
[1765288088412,0.97261668,90361.0,90360.0,0.01952]
[1765288088615,0.97161668,90361.0,90360.0,0.01752]
[1765288088944,0.97161668,90361.0,90360.0,0.01952]
[1765288089873,0.97161668,90361.0,90360.0,0.01752]
[1765288090210,0.97261668,90361.0,90360.0,0.01852]
[1765288090922,0.97161668,90361.0,90360.0,0.01752]
[1765288091068,0.97161668,90361.0,90360.0,0.01952]
[1765288091288,0.97161668,90361.0,90360.0,0.003]
[1765288091289,1.3748243,90361.0,90360.0,0.003]
[1765288091487,1.3748243,90361.0,90360.0,0.001]
[1765288093206,0.22135402,90353.0,90352.0,0.01752]
[1765288094638,0.22335402,90353.0,90352.0,0.01852]
[1765288099598,0.002,90353.0,90352.0,0.02013287]
[1765288099809,0.00102674,90353.0,90352.0,0.62684615]
[1765288100010,0.00102674,90353.0,90352.0,0.62484338]
[1765288100426,0.00102674,90353.0,90352.0,0.60471051]
[1765288100816,0.0002384,90357.0,90356.0,0.30584592]
[1765288101036,0.0002384,90357.0,90356.0,0.30745879]
[1765288102435,0.0002384,90357.0,90356.0,0.30945879]
[1765288102916,0.0002384,90357.0,90356.0,0.30745879]
[1765288103104,0.0012384,90357.0,90356.0,0.30845879]
[1765288103307,0.0012384,90357.0,90356.0,0.31245879]
[1765288103452,0.0002384,90357.0,90356.0,0.31145879]
[1765288103894,0.0012384,90357.0,90356.0,0.31645879]
[1765288104817,0.0012384,90357.0,90356.0,0.31645879]
[1765288105991,0.00018576,90357.0,90356.0,0.31645879]
[1765288106195,0.7486006,90361.0,90360.0,0.29385804]
[1765288106389,0.7486006,90361.0,90360.0,0.29547091]
[1765288107590,0.7496006,90361.0,90360.0,0.29947091]
[1765288108352,0.7496006,90361.0,90360.0,0.30247091]
[1765288108743,0.7496006,90361.0,90360.0,0.29947091]
[1765288109134,0.7486006,90361.0,90360.0,0.29747091]
[1765288109353,0.7496006,90361.0,90360.0,0.29947091]
[1765288109568,0.7496006,90361.0,90360.0,0.29747091]
[1765288109770,0.7486006,90361.0,90360.0,0.29547091]
[1765288110100,0.7496006,90361.0,90360.0,0.30147091]
[1765288110320,0.7486006,90361.0,90360.0,0.22594974]
[1765288110482,0.7486006,90361.0,90360.0,0.24346974]
[1765288110687,0.7496006,90361.0,90360.0,0.24646974]
[1765288110933,0.7486006,90361.0,90360.0,0.24346974]
[1765288111362,0.7486006,90361.0,90360.0,0.265446]
[1765288111782,0.7486006,90361.0,90360.0,0.32496899]
[1765288111950,0.7486006,90361.0,90360.0,0.32796899]
[1765288112313,0.7486006,90361.0,90360.0,0.32696899]
[1765288112926,0.7496006,90361.0,90360.0,0.32896899]
[1765288113138,0.7496006,90361.0,90360.0,0.32696899]
[1765288113560,0.7496006,90361.0,90360.0,0.32896899]
[1765288115234,0.7496006,90361.0,90360.0,0.61766899]
[1765288115434,0.7486006,90361.0,90360.0,0.61566899]
[1765288115635,0.7496006,90361.0,90360.0,0.62666899]
[1765288115830,0.09608285,90361.0,90360.0,0.68756055]
[1765288116034,1e-08,90361.0,90360.0,0.67656055]
[1765288116486,1e-08,90361.0,90360.0,0.68756055]
[1765288116718,1e-08,90365.0,90364.0,0.59652632]
[1765288116914,1e-08,90365.0,90364.0,0.71483919]
[1765288118329,1e-08,90365.0,90364.0,0.59813919]
[1765288119299,1e-08,90365.0,90364.0,0.61013919]
[1765288121716,1e-08,90365.0,90364.0,0.67103075]
[1765288121933,1e-08,90365.0,90364.0,0.81663075]
[1765288122190,1e-08,90365.0,90364.0,1.89329875]
[1765288122683,0.01105803,90432.0,90399.0,0.30574063]
[1765288122852,0.00810596,90400.0,90399.0,0.3248735]
[1765288124894,0.00810596,90400.0,90399.0,0.3278735]
[1765288125330,0.00810596,90400.0,90399.0,0.6155735]
[1765288125534,0.00810596,90400.0,90399.0,0.6165735]
[1765288125738,0.00810596,90400.0,90399.0,0.6175735]
[1765288125945,0.00810596,90400.0,90399.0,0.6165735]
[1765288126142,0.00810596,90400.0,90399.0,0.6155735]
[1765288126349,0.00810596,90400.0,90399.0,0.6205735]
[1765288126801,0.00810596,90400.0,90399.0,0.6175735]
[1765288126997,0.00810596,90400.0,90399.0,0.6205735]
[1765288128606,0.0004,90440.0,90439.0,0.24311979]
[1765288128807,0.00078633,90440.0,90439.0,0.26063979]
[1765288129209,0.00078633,90440.0,90439.0,0.32316278]
[1765288130199,0.00678633,90440.0,90439.0,0.08549925]
[1765288130405,0.00678633,90440.0,90439.0,0.001]
[1765288131209,0.00878633,90440.0,90439.0,0.001]
[1765288131554,0.22114353,90439.0,90438.0,0.01752]
[1765288133089,0.23114353,90439.0,90438.0,0.01752]
[1765288133277,0.22314353,90439.0,90438.0,0.01752]
[1765288133478,0.22534656,90439.0,90438.0,0.01752]
[1765288134245,0.22334656,90439.0,90438.0,0.01752]
[1765288134441,0.22434656,90439.0,90438.0,0.01752]
[1765288134873,0.23134656,90439.0,90438.0,0.01752]
[1765288135070,0.23034656,90439.0,90438.0,0.01752]
[1765288135271,0.22534656,90439.0,90438.0,0.01752]
[1765288135449,0.01105791,90433.0,90430.0,0.01105827]
[1765288135648,0.01105803,90432.0,90431.0,0.01752]
[1765288135871,0.23221907,90432.0,90431.0,0.01752]
[1765288136298,0.23421386,90432.0,90431.0,0.01752]
[1765288136869,0.00199479,90432.0,90431.0,0.01752]
[1765288137084,0.00199479,90432.0,90431.0,0.23868309]
[1765288138369,0.00199479,90432.0,90431.0,0.26065935]
[1765288139106,0.00699479,90432.0,90431.0,0.32479521]
[1765288140882,0.00699479,90432.0,90423.0,0.22118098]
[1765288140883,0.01105827,90430.0,90424.0,0.23223707]
[1765288141090,0.01105827,90430.0,90427.0,0.23223129]
[1765288141338,0.005,90432.0,90427.0,0.22117169]
[1765288141545,0.01105827,90430.0,90427.0,0.01105864]
[1765288141743,0.01105815,90431.0,90428.0,0.01105852]
[1765288141946,0.01105827,90430.0,90427.0,0.01105864]
[1765288142124,0.23722381,90430.0,90427.0,0.22117264]
[1765288142322,0.005,90430.0,90428.0,0.22117033]
[1765288142579,0.01105778,90434.0,90429.0,0.01105839]
[1765288142782,0.22115842,90433.0,90431.0,0.22116272]
[1765288142986,0.01105778,90434.0,90431.0,0.22116272]
[1765288143190,0.01105778,90434.0,90433.0,0.02197626]
[1765288143391,0.2322091,90436.0,90435.0,0.02197626]
[1765288144200,0.01105754,90436.0,90435.0,0.02197626]
[1765288144402,0.2322084,90436.0,90435.0,0.03949626]
[1765288144987,0.2332084,90436.0,90435.0,0.03949626]
[1765288145437,0.001,90436.0,90435.0,0.03949626]
[1765288145638,0.001,90436.0,90435.0,0.26064957]
[1765288145850,0.22215086,90436.0,90435.0,0.03949626]
[1765288146051,0.22915086,90436.0,90435.0,0.03949626]
[1765288146266,0.008,90436.0,90435.0,0.03949626]
[1765288146712,0.01011378,90436.0,90435.0,0.26064957]
[1765288146907,0.00311378,90436.0,90435.0,0.03949626]
[1765288147316,0.00211378,90436.0,90435.0,0.03949626]
[1765288147491,0.00311378,90436.0,90435.0,0.03949626]
[1765288148091,0.00211378,90436.0,90435.0,0.03949626]
[1765288148332,0.01011378,90436.0,90435.0,0.03949626]
[1765288148531,0.01011378,90436.0,90435.0,0.32478543]
[1765288148776,0.01011378,90436.0,90435.0,0.30726543]
[1765288148777,0.00311378,90436.0,90435.0,0.30726543]
[1765288148927,0.01011378,90436.0,90435.0,0.32478543]
[1765288149611,0.00911378,90436.0,90435.0,0.32478543]
[1765288150874,0.01011378,90436.0,90435.0,0.32478543]
[1765288151093,0.01011378,90436.0,90435.0,0.24474244]
[1765288151295,0.01011378,90436.0,90435.0,0.26226244]
[1765288151508,0.00311378,90436.0,90435.0,0.26226244]
[1765288152175,0.00911378,90436.0,90435.0,0.26226244]
[1765288152372,0.00911378,90436.0,90435.0,0.32478543]
[1765288152785,0.00211378,90436.0,90435.0,0.32478543]
[1765288152989,0.00911378,90436.0,90435.0,0.32478543]
[1765288154875,0.00211378,90436.0,90435.0,0.32478543]
[1765288155224,0.00811378,90436.0,90435.0,0.32478543]
[1765288156345,0.00211378,90436.0,90435.0,0.32478543]
[1765288157199,0.00211378,90436.0,90435.0,0.32678543]
[1765288157919,0.00411378,90436.0,90435.0,0.32478543]
[1765288158112,0.00211378,90436.0,90435.0,0.32578543]
[1765288158525,0.00711378,90436.0,90435.0,0.32478543]
[1765288158724,0.00211378,90436.0,90435.0,0.32478543]
[1765288158940,0.00211378,90436.0,90435.0,0.32678543]
[1765288159135,0.00511378,90436.0,90435.0,0.32678543]
[1765288159343,0.00211378,90436.0,90435.0,0.32678543]
[1765288159890,0.00711378,90436.0,90435.0,0.32678543]
[1765288160096,0.00711378,90436.0,90435.0,0.01752]
[1765288160097,0.22826464,90436.0,90435.0,0.01752]
[1765288160299,0.22117777,90425.0,90424.0,0.01999636]
[1765288160509,0.01105864,90427.0,90426.0,0.02197626]
[1765288160715,0.23223665,90425.0,90424.0,0.01999636]
[1765288161334,0.22116992,90429.0,90425.0,0.01105888]
[1765288161541,0.22116992,90429.0,90427.0,0.02197626]
[1765288161952,0.22116992,90429.0,90427.0,0.24314907]
[1765288162379,0.01105803,90432.0,90428.0,0.2211695]
[1765288162558,0.23222108,90432.0,90429.0,0.22116795]
[1765288162876,0.22116348,90431.0,90430.0,0.02197626]
[1765288163627,0.23222108,90432.0,90431.0,0.02197626]
[1765288164234,0.01105803,90432.0,90431.0,0.02197626]
[1765288164438,0.01705803,90432.0,90431.0,0.02197626]
[1765288164642,0.01105803,90432.0,90431.0,0.02197626]
[1765288165091,0.008,90432.0,90431.0,0.24313935]
[1765288165297,0.002,90432.0,90431.0,0.24313935]
[1765288165812,0.008,90432.0,90431.0,0.24313935]
[1765288166245,0.00799479,90432.0,90431.0,0.24313935]
[1765288166428,0.00899479,90432.0,90431.0,0.24313935]
[1765288167180,0.00891543,90432.0,90431.0,0.24313935]
[1765288169004,0.00891543,90432.0,90431.0,0.02197626]
[1765288169878,0.23007608,90432.0,90431.0,0.02197626]
[1765288170475,0.00891543,90432.0,90431.0,0.02197626]
[1765288172259,0.23007608,90432.0,90431.0,0.02197626]
[1765288173148,0.00891543,90432.0,90431.0,0.02197626]
[1765288173343,0.00891543,90432.0,90431.0,0.24313935]
[1765288174648,0.00891543,90432.0,90431.0,0.22116309]